Body,Body Name,Date,TransNo,Amount � (Excl VAT),Supplier name,Description,Expense Area,Expense Type,Expense Code,
http://opendatacommunities.org/id/london-borough-council/sutton,London Borough of Sutton,16/01/2019,1267845,44.32 , AMAZON.CO.UK MB8C33BF4,ELECTRICAL TOYS,Peoples Services Directorate,Education Equipment,F009,
http://opendatacommunities.org/id/london-borough-council/sutton,London Borough of Sutton,15/01/2019,1267845,39.99 , CURRYS SUPERSTORE,ELECTRICAL EQUIPMENT,Peoples Services Directorate,Education Equipment,F009,
http://opendatacommunities.org/id/london-borough-council/sutton,London Borough of Sutton,04/01/2019,1267845,11.08 , AMZN MKTP UK MB56E4ZZ4,TOYS,Peoples Services Directorate,Education Equipment,F009,
http://opendatacommunities.org/id/london-borough-council/sutton,London Borough of Sutton,04/01/2019,1267845,29.95 , AMAZON.CO.UK MB81X2LL4,TOYS,Peoples Services Directorate,Education Equipment,F009,
http://opendatacommunities.org/id/london-borough-council/sutton,London Borough of Sutton,15/01/2019,1267845,19.46 , ROBERT DYAS HOLDNG LTD,KITCHEN EQUIPMENT,Peoples Services Directorate,Other Equipment - Purchase,F015,
http://opendatacommunities.org/id/london-borough-council/sutton,London Borough of Sutton,21/01/2019,1267845,41.65 , SAINSBURYS 2331,GROCERIES,Peoples Services Directorate,Provisions - General,F150,
http://opendatacommunities.org/id/london-borough-council/sutton,London Borough of Sutton,14/01/2019,1267845,18.82 , ASDA SUPERSTORE,GROCERIES,Peoples Services Directorate,Provisions - General,F150,
http://opendatacommunities.org/id/london-borough-council/sutton,London Borough of Sutton,07/01/2019,1267845,134.70 , SAINSBURYS 2331,GROCERIES,Peoples Services Directorate,Provisions - General,F150,
http://opendatacommunities.org/id/london-borough-council/sutton,London Borough of Sutton,28/12/2018,1267845,42.12 , SAINSBURYS TO YOU 0052,SAINSBURYS SHOP,Peoples Services Directorate,Provisions - General,F150,
http://opendatacommunities.org/id/london-borough-council/sutton,London Borough of Sutton,21/01/2019,1267845,75.70 , SAINSBURYS 2331,GROCERIES,Peoples Services Directorate,Refreshments,F155,
http://opendatacommunities.org/id/london-borough-council/sutton,London Borough of Sutton,04/01/2019,1267845,3.46 , AMZN MKTP UK MB0WF7L94,STATIONARY,Peoples Services Directorate,Stationery,F220,
http://opendatacommunities.org/id/london-borough-council/sutton,London Borough of Sutton,03/01/2019,1267845,16.52 , AMAZON.CO.UK MB8VJ74Z4,STATIONARY,Peoples Services Directorate,Stationery,F220,
http://opendatacommunities.org/id/london-borough-council/sutton,London Borough of Sutton,24/01/2019,1267845,250.00 , TEAM SPORT V/T,GROUP ACTIVITY - TYS,Peoples Services Directorate,Provisions - General,F150,
http://opendatacommunities.org/id/london-borough-council/sutton,London Borough of Sutton,10/01/2019,1267845,39.00 , PAYPAL  REEDONLINEL,39.00 - A520 0304 9999 - REED ONLINE TRAINING.PNG,Peoples Services Directorate,Training - Course Fees,A520,
http://opendatacommunities.org/id/london-borough-council/sutton,London Borough of Sutton,14/01/2019,1267845,153.94 , WWW.ARGOS.CO.UK,LEAVING CARE SET UP,Peoples Services Directorate,Personal Requisites,F106,
http://opendatacommunities.org/id/london-borough-council/sutton,London Borough of Sutton,09/01/2019,1267845,21.40 , PIZZAEXPRESS REST,MA ACTIVITY COURT,Peoples Services Directorate,Personal Requisites,F106,
http://opendatacommunities.org/id/london-borough-council/sutton,London Borough of Sutton,08/01/2019,1267845,4.55 , SAINSBURYS SACAT4973,MA ACTIVITY COURT,Peoples Services Directorate,Personal Requisites,F106,
http://opendatacommunities.org/id/london-borough-council/sutton,London Borough of Sutton,08/01/2019,1267845,8.20 , PP SONIADOR CAFE,MA ACTIVITY COURT,Peoples Services Directorate,Personal Requisites,F106,
http://opendatacommunities.org/id/london-borough-council/sutton,London Borough of Sutton,07/01/2019,1267845,6.17 , MCDONALDS,MA ACTIVITY,Peoples Services Directorate,Personal Requisites,F106,
http://opendatacommunities.org/id/london-borough-council/sutton,London Borough of Sutton,14/01/2019,1267845,150.50 , TVLICENSING.CO.UK,TV LICENCE,Peoples Services Directorate,Personal Requisites,F106,
http://opendatacommunities.org/id/london-borough-council/sutton,London Borough of Sutton,25/01/2019,1267845,342.00 , AA B2B,ACCOMMODATION,Peoples Services Directorate,Personal Requisites,F106,
http://opendatacommunities.org/id/london-borough-council/sutton,London Borough of Sutton,25/01/2019,1267845,250.00 , BARNES HARRILD & DYER,ACCOMMODATION,Peoples Services Directorate,Personal Requisites,F106,
http://opendatacommunities.org/id/london-borough-council/sutton,London Borough of Sutton,17/01/2019,1267845,20.98 , AMZN MKTP UK MB1QR18T4,MA SETTING UP,Peoples Services Directorate,Set Up Costs - Children Leaving Care,H336,
http://opendatacommunities.org/id/london-borough-council/sutton,London Borough of Sutton,03/01/2019,1267845,150.50 , TVLICENSING.CO.UK,TV LICENCE PURCHASED FOR YP IN LEAVING CARE TEAM AS PART OF START UP GRANT,Peoples Services Directorate,Set Up Costs - Children Leaving Care,H336,
http://opendatacommunities.org/id/london-borough-council/sutton,London Borough of Sutton,17/01/2019,1267845,75.00 , 2MAA007822363 TD E-PMT,MA SETTING UP,Peoples Services Directorate,Personal Requisites,F106,
http://opendatacommunities.org/id/london-borough-council/sutton,London Borough of Sutton,09/01/2019,1267845,20.00 , OYSTER AUTO-TOP UP,20.00 - AUTOTOPUP - A530 0310 9999 - RAS.PNG,Peoples Services Directorate,Travelling and Subsistence Allowances,A530,
http://opendatacommunities.org/id/london-borough-council/sutton,London Borough of Sutton,09/01/2019,1267845,20.00 , OYSTER AUTO-TOP UP,20.00 - AUTOTOPUP - A530 0310 9999 - RAS.PNG,Peoples Services Directorate,Travelling and Subsistence Allowances,A530,
http://opendatacommunities.org/id/london-borough-council/sutton,London Borough of Sutton,27/12/2018,1267845,111.50 , TRAVELODGE,EMERGENCY ACCOMMODATION,Peoples Services Directorate,Accommodation - Bed and Breakfast,H202,
http://opendatacommunities.org/id/london-borough-council/sutton,London Borough of Sutton,08/01/2019,1267845,20.00 , WWW.WIGHTLINK.CO.UK,TRAVEL FOR CONTACT,Peoples Services Directorate,Travelling and Subsistence Allowances,A530,
http://opendatacommunities.org/id/london-borough-council/sutton,London Borough of Sutton,24/01/2019,1267845,20.00 , OYSTER AUTO-TOP UP,20.00 - A530 0311 9999 - OYSTER CARD - LAC CARD4.PN,Peoples Services Directorate,Travelling and Subsistence Allowances,A530,
http://opendatacommunities.org/id/london-borough-council/sutton,London Borough of Sutton,10/01/2019,1267845,19.08 , PAYPAL  DOVER ROYAL,19.08 - A530 0311 9999 - DOVER TAXIS.PNG,Peoples Services Directorate,Travelling and Subsistence Allowances,A530,
http://opendatacommunities.org/id/london-borough-council/sutton,London Borough of Sutton,18/01/2019,1267845,20.00 , OYSTER AUTO-TOP UP,20.00 - A530 0311 9999 - OYSTER CARD - LAC CARD4.PNG,Peoples Services Directorate,Travelling and Subsistence Allowances,A530,
http://opendatacommunities.org/id/london-borough-council/sutton,London Borough of Sutton,09/01/2019,1267845,20.00 , OYSTER AUTO-TOP UP,20.00 - A530 0311 9999 - OYSTER CARD FOR LAC.PNG,Peoples Services Directorate,Travelling and Subsistence Allowances,A530,
http://opendatacommunities.org/id/london-borough-council/sutton,London Borough of Sutton,07/01/2019,1267845,20.00 , WWW.WIGHTLINK.CO.UK,20.00 - A530 0311 9999 - WIGHTLINK FERRIES.PNG,Peoples Services Directorate,Travelling and Subsistence Allowances,A530,
http://opendatacommunities.org/id/london-borough-council/sutton,London Borough of Sutton,07/01/2019,1267845,20.00 , WWW.WIGHTLINK.CO.UK,20.00 - A530 0311 9999 - WIGHTLINK FERRIES 1.PNG,Peoples Services Directorate,Travelling and Subsistence Allowances,A530,
http://opendatacommunities.org/id/london-borough-council/sutton,London Borough of Sutton,30/12/2018,1267845,20.00 , OYSTER AUTO-TOP UP,AUTO TOP UP,Peoples Services Directorate,Travelling and Subsistence Allowances,A530,
http://opendatacommunities.org/id/london-borough-council/sutton,London Borough of Sutton,28/12/2018,1267845,73.25 , POST OFFICE COUNTER,PASSPORT APPLICATION LAC,Peoples Services Directorate,Travelling and Subsistence Allowances,A530,
http://opendatacommunities.org/id/london-borough-council/sutton,London Borough of Sutton,27/12/2018,1267845,15.00 , OYSTER ONLINE,15.00 OYSTER CARD PURCHASE A530 0311 9999 1.PNG,Peoples Services Directorate,Travelling and Subsistence Allowances,A530,
http://opendatacommunities.org/id/london-borough-council/sutton,London Borough of Sutton,27/12/2018,1267845,15.00 , OYSTER ONLINE,15.00 OYSTER CARD PURCHASE A530 0311 9999 1.PNG,Peoples Services Directorate,Travelling and Subsistence Allowances,A530,
http://opendatacommunities.org/id/london-borough-council/sutton,London Borough of Sutton,27/12/2018,1267845,15.00 , OYSTER ONLINE,15.00 OYSTER CARD PURCHASE A530 0311 9999 1.PNG,Peoples Services Directorate,Travelling and Subsistence Allowances,A530,
http://opendatacommunities.org/id/london-borough-council/sutton,London Borough of Sutton,27/12/2018,1267845,15.00 , OYSTER ONLINE,15.00 OYSTER CARD PURCHASE A530 0311 9999 1.PNG,Peoples Services Directorate,Travelling and Subsistence Allowances,A530,
http://opendatacommunities.org/id/london-borough-council/sutton,London Borough of Sutton,24/01/2019,1267845,24.00 , LB CROYDON,BIRTH CERIFICATES,Peoples Services Directorate,Personal Requisites,F106,
http://opendatacommunities.org/id/london-borough-council/sutton,London Borough of Sutton,22/01/2019,1267845,12.00 , LONDON BOR'OF HILL,HILLINGDON BIRTH CERT,Peoples Services Directorate,Personal Requisites,F106,
http://opendatacommunities.org/id/london-borough-council/sutton,London Borough of Sutton,11/01/2019,1267845,87.15 , LOCKMEADOW ENTERTAINME,87.15 - F106 0311 9999 - GRAVITY TRAMPOLINE PARK - MAIDSTONE.PNG,Peoples Services Directorate,Personal Requisites,F106,
http://opendatacommunities.org/id/london-borough-council/sutton,London Borough of Sutton,14/01/2019,1267845,2.60 ," NET NANNY,CONTENTWATCH",NET NANNY ANNUAL SUBSCRIPTION FOREIGN EXCHANGE FEE,Peoples Services Directorate,Subscriptions - General,F450,
http://opendatacommunities.org/id/london-borough-council/sutton,London Borough of Sutton,11/01/2019,1267845,94.39 ," NET NANNY,CONTENTWATCH",NET NANNY ANNUAL SUBSCRIPTION,Peoples Services Directorate,Subscriptions - General,F450,
http://opendatacommunities.org/id/london-borough-council/sutton,London Borough of Sutton,15/01/2019,1267845,53.00 , NATIONAL EXPRESS LIMIT,NATIONAL COACH,Peoples Services Directorate,Travelling and Subsistence Allowances,A530,
http://opendatacommunities.org/id/london-borough-council/sutton,London Borough of Sutton,11/01/2019,1267845,20.00 , OYSTER AUTO-TOP UP,20.00 - A530 0312 9999 - OYSTER CARD .PNG,Peoples Services Directorate,Travelling and Subsistence Allowances,A530,
http://opendatacommunities.org/id/london-borough-council/sutton,London Borough of Sutton,10/01/2019,1267845,57.00 , NATIONAL EXPRESS LIMIT,57.00 - A530 0312 9999 - NATIONAL COACH TICKETS.PNG,Peoples Services Directorate,Travelling and Subsistence Allowances,A530,
http://opendatacommunities.org/id/london-borough-council/sutton,London Borough of Sutton,17/01/2019,1267845,20.00 , OYSTER AUTO-TOP UP,20.00 - A530 0312 9999 - OYSTER CARD .PNG,Peoples Services Directorate,Travelling and Subsistence Allowances,A530,
http://opendatacommunities.org/id/london-borough-council/sutton,London Borough of Sutton,16/01/2019,1267845,53.00 , NATIONAL EXPRESS LIMIT,53.00 - A530 0312 9999 - NATIONAL COACH EXPRESS.PNG,Peoples Services Directorate,Travelling and Subsistence Allowances,A530,
http://opendatacommunities.org/id/london-borough-council/sutton,London Borough of Sutton,08/01/2019,1267845,53.00 , NATIONAL EXPRESS LIMIT,53.00 - A530 0312 9999 - NATIONAL COACH EXPRESS.PNG,Peoples Services Directorate,Travelling and Subsistence Allowances,A530,
http://opendatacommunities.org/id/london-borough-council/sutton,London Borough of Sutton,03/01/2019,1267845,17.00 , WWW.WIGHTLINK.CO.UK,17.00 - A530 0312 9999 - WIGTLINK TICKET FOR PATRICK M.PNG,Peoples Services Directorate,Travelling and Subsistence Allowances,A530,
http://opendatacommunities.org/id/london-borough-council/sutton,London Borough of Sutton,16/01/2019,1267845,12.00 , LB CROYDON,12.00 - F106 0312 9999 - BIRTH CERT,Peoples Services Directorate,Personal Requisites,F106,
http://opendatacommunities.org/id/london-borough-council/sutton,London Borough of Sutton,02/01/2019,1267845,7.50 , WILKO RETAIL LIMIT,DIARIES FOR COURT TEAM,Peoples Services Directorate,Provisions - General,F150,
http://opendatacommunities.org/id/london-borough-council/sutton,London Borough of Sutton,25/01/2019,1267845,51.40 , NATIONAL EXPRESS LIMIT,TRAVEL FOR CONTACT,Peoples Services Directorate,C.C.A Travel & Subsistance,H212,
http://opendatacommunities.org/id/london-borough-council/sutton,London Borough of Sutton,25/01/2019,1267845,53.00 , NATIONAL EXPRESS LIMIT,TRAVEL FOR CONTACT,Peoples Services Directorate,C.C.A Travel & Subsistance,H212,
http://opendatacommunities.org/id/london-borough-council/sutton,London Borough of Sutton,26/01/2019,1267845,20.00 , OYSTER AUTO-TOP UP,OYSTER AUTO-TOP UP,Peoples Services Directorate,Travelling and Subsistence Allowances,A530,
http://opendatacommunities.org/id/london-borough-council/sutton,London Borough of Sutton,27/01/2019,1267845,20.00 , OYSTER AUTO-TOP UP,OYSTER AUTO-TOP UP,Peoples Services Directorate,Travelling and Subsistence Allowances,A530,
http://opendatacommunities.org/id/london-borough-council/sutton,London Borough of Sutton,27/01/2019,1267845,20.00 , OYSTER AUTO-TOP UP,OYSTER AUTO-TOP UP,Peoples Services Directorate,Travelling and Subsistence Allowances,A530,
http://opendatacommunities.org/id/london-borough-council/sutton,London Borough of Sutton,26/01/2019,1267845,20.00 , OYSTER AUTO-TOP UP,OYSTER AUTO-TOP UP,Peoples Services Directorate,Travelling and Subsistence Allowances,A530,
http://opendatacommunities.org/id/london-borough-council/sutton,London Borough of Sutton,26/01/2019,1267845,20.00 , OYSTER AUTO-TOP UP,OYSTER AUTO-TOP UP,Peoples Services Directorate,Travelling and Subsistence Allowances,A530,
http://opendatacommunities.org/id/london-borough-council/sutton,London Borough of Sutton,26/01/2019,1267845,20.00 , OYSTER AUTO-TOP UP,OYSTER AUTO-TOP UP,Peoples Services Directorate,Travelling and Subsistence Allowances,A530,
http://opendatacommunities.org/id/london-borough-council/sutton,London Borough of Sutton,26/01/2019,1267845,20.00 , OYSTER AUTO-TOP UP,OYSTER AUTO-TOP UP,Peoples Services Directorate,Travelling and Subsistence Allowances,A530,
http://opendatacommunities.org/id/london-borough-council/sutton,London Borough of Sutton,12/01/2019,1267845,20.00 , OYSTER AUTO-TOP UP,20.00 AUTO TOP UP - A530 0318 9999 .PNG,Peoples Services Directorate,Travelling and Subsistence Allowances,A530,
http://opendatacommunities.org/id/london-borough-council/sutton,London Borough of Sutton,19/01/2019,1267845,20.00 , OYSTER AUTO-TOP UP,20.00 - A530 0318 9999 - OYSTER CARD ,Peoples Services Directorate,Travelling and Subsistence Allowances,A530,
http://opendatacommunities.org/id/london-borough-council/sutton,London Borough of Sutton,09/01/2019,1267845,20.00 , OYSTER AUTO-TOP UP,20.00 - A530 0318 9999 - OYSTER CARD,Peoples Services Directorate,Recruitment Expenses,A531,
http://opendatacommunities.org/id/london-borough-council/sutton,London Borough of Sutton,09/01/2019,1267845,113.40 , WWW.CORAM.ORG.UK,113.40 - A520 0320 9999 - COORAMBAF TRAINING COURSE.PN,Peoples Services Directorate,Travelling and Subsistence Allowances,A530,
http://opendatacommunities.org/id/london-borough-council/sutton,London Borough of Sutton,11/01/2019,1267845,63.94 , WWW.ARGOS.CO.UK,63.94 - H301 0320 9999 - ARGOS.PNG,Peoples Services Directorate,Client Care/Assistance,H301,
http://opendatacommunities.org/id/london-borough-council/sutton,London Borough of Sutton,11/01/2019,1267845,63.94 , WWW.ARGOS.CO.UK,63.94 - H301 0320 9999 - ARGOS.PNG,Peoples Services Directorate,Client Care/Assistance,H301,
http://opendatacommunities.org/id/london-borough-council/sutton,London Borough of Sutton,11/01/2019,1267845,(63.94), WWW.ARGOS.CO.UK,63.94 - H301 0320 9999 - ARGOS.PNG,Peoples Services Directorate,Client Care/Assistance,H301,
http://opendatacommunities.org/id/london-borough-council/sutton,London Borough of Sutton,24/01/2019,1267845,121.50 , HOLIDAY INN LEICESTER,121.50 - A530 0321 9999 - ADOPTION HOTEL FOR CLIENT,Peoples Services Directorate,Travelling and Subsistence Allowances,A530,
http://opendatacommunities.org/id/london-borough-council/sutton,London Borough of Sutton,15/01/2019,1267845,239.00 , ORCHARD FARM LTD,EQUIPMENT,Peoples Services Directorate,Books,F006,
http://opendatacommunities.org/id/london-borough-council/sutton,London Borough of Sutton,17/01/2019,1267845,170.00 , COUNTY COUNTY,COURT COST - ADOPTION,Peoples Services Directorate,Fees - Other,F299,
http://opendatacommunities.org/id/london-borough-council/sutton,London Borough of Sutton,08/01/2019,1267845,234.00 , PREMIER INN,ACCOMMODATION,Peoples Services Directorate,Accommodation - Bed and Breakfast,H202,
http://opendatacommunities.org/id/london-borough-council/sutton,London Borough of Sutton,16/01/2019,1267845,282.50 , PREMIER INN,282.50 - H202 0321 9999 - ACCOMMODATION FOR POTENTIAL ADOPTER.PNG,Peoples Services Directorate,Accommodation - Bed and Breakfast,H202,
http://opendatacommunities.org/id/london-borough-council/sutton,London Borough of Sutton,16/01/2019,1267845,59.00 , PREMIER INN,59.00 - H202 0321 9999 - ACOMMODATION FOR POTENTIAL ADOPTER.PNG,Peoples Services Directorate,Accommodation - Bed and Breakfast,H202,
http://opendatacommunities.org/id/london-borough-council/sutton,London Borough of Sutton,24/01/2019,1267845,170.00 , COUNTY COUNTY,ADOPTION APPLICATION FEE,Peoples Services Directorate,Fees - Other,F299,
http://opendatacommunities.org/id/london-borough-council/sutton,London Borough of Sutton,03/01/2019,1267845,276.00 , WESTMINSTER FORUM,276. - A520 0330 9999 - WESTMINSTER FORUM.PNG,Chief Executive's Directorate,Training - Course Fees,A520,
http://opendatacommunities.org/id/london-borough-council/sutton,London Borough of Sutton,15/01/2019,1267845,15.00 , OYSTER ONLINE,15.00 - A530 0330 9999 - OYSTER CARD (4) FOR IRO.PNG,Chief Executive's Directorate,Travelling and Subsistence Allowances,A530,
http://opendatacommunities.org/id/london-borough-council/sutton,London Borough of Sutton,10/01/2019,1267845,15.00 , OYSTER ONLINE,15.00 - A530 0330 9999 - OYSTER CARD IRO.PNG,Chief Executive's Directorate,Travelling and Subsistence Allowances,A530,
http://opendatacommunities.org/id/london-borough-council/sutton,London Borough of Sutton,16/01/2019,1267845,15.00 , OYSTER ONLINE,15.00 - A530 0330 9999 - OYSTER CARD (3) FOR IRO.PNG,Chief Executive's Directorate,Travelling and Subsistence Allowances,A530,
http://opendatacommunities.org/id/london-borough-council/sutton,London Borough of Sutton,16/01/2019,1267845,15.00 , OYSTER ONLINE,15.00 - A530 0330 9999 - OYSTER CARD (2) FOR IRO.PNG,Chief Executive's Directorate,Travelling and Subsistence Allowances,A530,
http://opendatacommunities.org/id/london-borough-council/sutton,London Borough of Sutton,16/01/2019,1267845,15.00 , OYSTER ONLINE,15.00 - A530 0330 9999 - OYSTER CARD (3) FOR IRO.PNG,Chief Executive's Directorate,Travelling and Subsistence Allowances,A530,
http://opendatacommunities.org/id/london-borough-council/sutton,London Borough of Sutton,22/01/2019,1267845,137.00 , HOLIDAY INNS,ONE NIGHT AND BREAKFAST AT HOLIDAY INN FROM 27 JAN TO 28 JAN,Chief Executive's Directorate,Travelling and Subsistence Allowances,A530,
http://opendatacommunities.org/id/london-borough-council/sutton,London Borough of Sutton,24/01/2019,1267845,62.60 , WWW.HEADOUT.COM,CONTACT ACTIVITY,Peoples Services Directorate,Personal Requisites,F106,
http://opendatacommunities.org/id/london-borough-council/sutton,London Borough of Sutton,22/01/2019,1267845,133.93 , WWW.ARGOS.CO.UK,ARGOS ORDER,Peoples Services Directorate,Personal Requisites,F106,
http://opendatacommunities.org/id/london-borough-council/sutton,London Borough of Sutton,10/01/2019,1267845,51.69 , TESCO STORES 5999,53.55 - F106 0340 9999 - SFC TESCO ORDER.PNG,Peoples Services Directorate,Personal Requisites,F106,
http://opendatacommunities.org/id/london-borough-council/sutton,London Borough of Sutton,07/01/2019,1267845,25.98 , AMZN MKTP UK MB2NL1304,31.98 - F106 0340 9999 - AMAZON..PN,Peoples Services Directorate,Personal Requisites,F106,
http://opendatacommunities.org/id/london-borough-council/sutton,London Borough of Sutton,06/01/2019,1267845,31.98 , AMZN MKTP UK MB1PN4NH4,31.98 - F106 0340 9999 - AMAZON..PNG,Peoples Services Directorate,Personal Requisites,F106,
http://opendatacommunities.org/id/london-borough-council/sutton,London Borough of Sutton,04/01/2019,1267845,15.99 , AMZN MKTP UK MB3KG1LU4,15.99 - F106 0340 9999 - AMAZON ORDER.PNG,Peoples Services Directorate,Provisions - General,F150,
http://opendatacommunities.org/id/london-borough-council/sutton,London Borough of Sutton,25/01/2019,1267845,50.00 , SAINSBURYS LOC (4319),VOUCHERS FOR PEOPLE CONFERENCE,Chief Executive's Directorate,Personal Requisites,F106,
http://opendatacommunities.org/id/london-borough-council/sutton,London Borough of Sutton,10/01/2019,1267845,14.64 , TESCO STORES 3235,GROCERIES,Chief Executive's Directorate,LAC - Education,F269,
http://opendatacommunities.org/id/london-borough-council/sutton,London Borough of Sutton,24/01/2019,1267845,10.00 , LBSUTTON,BIRTH CERTIFICATE,Peoples Services Directorate,Personal Requisites,F106,
http://opendatacommunities.org/id/london-borough-council/sutton,London Borough of Sutton,24/01/2019,1267845,12.00 , WANDSWORTH COUNCIL,BIRTH CERTIFICATE,Peoples Services Directorate,Personal Requisites,F106,
http://opendatacommunities.org/id/london-borough-council/sutton,London Borough of Sutton,12/01/2019,1267845,20.00 , OYSTER AUTO-TOP UP,20.00 - A530 0383 9999 - OYSTER CARD,Peoples Services Directorate,Travelling and Subsistence Allowances,A530,
http://opendatacommunities.org/id/london-borough-council/sutton,London Borough of Sutton,24/01/2019,1267845,562.50 , TRAVELODGE,EMERGENCY ACCOMMODATION,Peoples Services Directorate,Accommodation - Bed and Breakfast,H202,
http://opendatacommunities.org/id/london-borough-council/sutton,London Borough of Sutton,17/01/2019,1267845,544.50 , TRAVELODGE,566.50 - H202 0383 9999 - TRAVELODGE,Peoples Services Directorate,Accommodation - Bed and Breakfast,H202,
http://opendatacommunities.org/id/london-borough-council/sutton,London Borough of Sutton,03/01/2019,1267845,903.25 , TRAVELODGE,903.25 - H211 0383 9999 - TRAVELODGE,Peoples Services Directorate,C.C.A Rent & Utilities,H211,
http://opendatacommunities.org/id/london-borough-council/sutton,London Borough of Sutton,25/01/2019,1267845,20.00 , OYSTER AUTO-TOP UP,OYSTERCARD TOP UP,"Environment, Housing & Regeneration Directorate",General Office Expenses,F235,
http://opendatacommunities.org/id/london-borough-council/sutton,London Borough of Sutton,19/01/2019,1267845,20.00 , OYSTER AUTO-TOP UP,OYSTERCARD TOP UP,"Environment, Housing & Regeneration Directorate",General Office Expenses,F235,
http://opendatacommunities.org/id/london-borough-council/sutton,London Borough of Sutton,11/01/2019,1267845,20.00 , OYSTER AUTO-TOP UP,OYSTERCARD TOP UP,"Environment, Housing & Regeneration Directorate",General Office Expenses,F235,
http://opendatacommunities.org/id/london-borough-council/sutton,London Borough of Sutton,05/01/2019,1267845,20.00 , OYSTER AUTO-TOP UP,OYSTERCARD TOP UP,"Environment, Housing & Regeneration Directorate",General Office Expenses,F235,
http://opendatacommunities.org/id/london-borough-council/sutton,London Borough of Sutton,17/01/2019,1267845,49.08 , LCN.COM LTD,WEB DOMAIN HOSTING FOR OPPORTUNITYSUTTON.ORG.UK,"Environment, Housing & Regeneration Directorate",Subscriptions - General,F450,
http://opendatacommunities.org/id/london-borough-council/sutton,London Borough of Sutton,23/01/2019,1267845,20.00 , OYSTER AUTO-TOP UP,OYSTERCARD TOP UP,"Environment, Housing & Regeneration Directorate",General Office Expenses,F235,
http://opendatacommunities.org/id/london-borough-council/sutton,London Borough of Sutton,18/01/2019,1267845,20.00 , OYSTER AUTO-TOP UP,OYSTERCARD TOP UP,"Environment, Housing & Regeneration Directorate",General Office Expenses,F235,
http://opendatacommunities.org/id/london-borough-council/sutton,London Borough of Sutton,11/01/2019,1267845,20.00 , OYSTER AUTO-TOP UP,OYSTERCARD TOP UP,"Environment, Housing & Regeneration Directorate",General Office Expenses,F235,
http://opendatacommunities.org/id/london-borough-council/sutton,London Borough of Sutton,06/01/2019,1267845,20.00 , OYSTER AUTO-TOP UP,OYSTERCARD TOP UP,"Environment, Housing & Regeneration Directorate",General Office Expenses,F235,
http://opendatacommunities.org/id/london-borough-council/sutton,London Borough of Sutton,24/01/2019,1267845,57.00 , IZ  CAKE MY DAY,WHITEHALL TEA ROOM SUPPLIES,Chief Executive's Directorate,Provisions - General,F150,
http://opendatacommunities.org/id/london-borough-council/sutton,London Borough of Sutton,17/01/2019,1267845,57.00 , IZ  CAKE MY DAY,WHITEHALL TEA ROOM SUPPLIES,Chief Executive's Directorate,Provisions - General,F150,
http://opendatacommunities.org/id/london-borough-council/sutton,London Borough of Sutton,10/01/2019,1267845,53.80 , SAINSBURYS TO YOU 0038,SUPPLIES FOR WHITEHALL TEA ROOM,Chief Executive's Directorate,Provisions - General,F150,
http://opendatacommunities.org/id/london-borough-council/sutton,London Borough of Sutton,15/01/2019,1267845,20.05 , VILLAGE BAKERS,SANDWICHES CMT,Resources Directorate,Hospitality (VAT not Recoverable),F325,
http://opendatacommunities.org/id/london-borough-council/sutton,London Borough of Sutton,14/01/2019,1267845,32.63 , TESCO STORE 3235,CITIZENSHIP REFRESHMENTS,Resources Directorate,Hospitality (VAT not Recoverable),F325,
http://opendatacommunities.org/id/london-borough-council/sutton,London Borough of Sutton,03/01/2019,1267845,8.32 , SPOTIFY P08EFFB747,MUSIC FOR REGISTER OFFICE CEREMONIES,Resources Directorate,Subscriptions - General,F450,
http://opendatacommunities.org/id/london-borough-council/sutton,London Borough of Sutton,10/01/2019,1267845,207.25 , MENU SHOP EUROPE,CHILDREN'S RESOURCES WHITEHALL HISTORIC HOUSE,Chief Executive's Directorate,Stationery,F220,
http://opendatacommunities.org/id/london-borough-council/sutton,London Borough of Sutton,13/01/2019,1267845,20.00 , OYSTER AUTO-TOP UP,OYSTERCARD TOP UP,HRA,General Office Expenses,F235,
http://opendatacommunities.org/id/london-borough-council/sutton,London Borough of Sutton,24/01/2019,1267845,20.00 , OYSTER AUTO-TOP UP,OYSTERCARD TOP UP,"Environment, Housing & Regeneration Directorate",General Office Expenses,F235,
http://opendatacommunities.org/id/london-borough-council/sutton,London Borough of Sutton,24/01/2019,1267845,26.67 , MARKS&SPENCER PLC,HMD EVENT,Chief Executive's Directorate,Travelling and Subsistence Allowances,A530,
http://opendatacommunities.org/id/london-borough-council/sutton,London Borough of Sutton,24/01/2019,1267845,20.00 , OYSTER AUTO-TOP UP,TEAM OYSTER,Chief Executive's Directorate,Travelling and Subsistence Allowances,A530,
http://opendatacommunities.org/id/london-borough-council/sutton,London Borough of Sutton,20/01/2019,1267845,20.00 , OYSTER AUTO-TOP UP,TEAM OYSTER,Chief Executive's Directorate,Travelling and Subsistence Allowances,A530,
http://opendatacommunities.org/id/london-borough-council/sutton,London Borough of Sutton,19/01/2019,1267845,20.00 , OYSTER AUTO-TOP UP,TEAM OYSTER,Chief Executive's Directorate,Travelling and Subsistence Allowances,A530,
http://opendatacommunities.org/id/london-borough-council/sutton,London Borough of Sutton,12/01/2019,1267845,20.00 , OYSTER AUTO-TOP UP,TEAM OYSTER,Chief Executive's Directorate,Travelling and Subsistence Allowances,A530,
http://opendatacommunities.org/id/london-borough-council/sutton,London Borough of Sutton,23/01/2019,1267845,14.97 , WM MORRISONS STORE,HMD EVENT,Chief Executive's Directorate,General Office Expenses,F235,
http://opendatacommunities.org/id/london-borough-council/sutton,London Borough of Sutton,23/01/2019,1267845,4.50 , WILKO RETAIL LIMIT,HMD EVENT,Chief Executive's Directorate,General Office Expenses,F235,
http://opendatacommunities.org/id/london-borough-council/sutton,London Borough of Sutton,16/01/2019,1267845,40.88 , PAYPAL  GOOGLEADDON,GOOGLE ADD-ON,Chief Executive's Directorate,Fees - Computer Software,F384,
http://opendatacommunities.org/id/london-borough-council/sutton,London Borough of Sutton,15/01/2019,1267845,3.54 , MAILCHIMP    MONTHLY,WEB HOSTING,Chief Executive's Directorate,Fees - Computer Software,F384,
http://opendatacommunities.org/id/london-borough-council/sutton,London Borough of Sutton,14/01/2019,1267845,128.70 , MAILCHIMP    MONTHLY,WEB HOSTING,Chief Executive's Directorate,Fees - Computer Software,F384,
http://opendatacommunities.org/id/london-borough-council/sutton,London Borough of Sutton,16/01/2019,1267845,0.56 , TRANSCRIBE.WREALLY.COM,TRANSCRIPTION FOREIGN CURRENCY EXCHANGE FEE,Resources Directorate,Fees - Computer Software,F384,
http://opendatacommunities.org/id/london-borough-council/sutton,London Borough of Sutton,15/01/2019,1267845,20.38 , TRANSCRIBE.WREALLY.COM,TRANSCRIPTION SUBSCRIPTION RENEWAL,Resources Directorate,Fees - Computer Software,F384,
http://opendatacommunities.org/id/london-borough-council/sutton,London Borough of Sutton,26/01/2019,1267845,20.00 , OYSTER AUTO-TOP UP,OYSTER CARD TOP UP,Resources Directorate,Travelling and Subsistence Allowances,A530,
http://opendatacommunities.org/id/london-borough-council/sutton,London Borough of Sutton,24/01/2019,1267845,20.00 , OYSTER AUTO-TOP UP,OYSTER CARD TOP UP,Resources Directorate,Travelling and Subsistence Allowances,A530,
http://opendatacommunities.org/id/london-borough-council/sutton,London Borough of Sutton,12/01/2019,1267845,20.00 , OYSTER AUTO-TOP UP,OYSTER CARD TOP UP,Resources Directorate,Travelling and Subsistence Allowances,A530,
http://opendatacommunities.org/id/london-borough-council/sutton,London Borough of Sutton,25/01/2019,1267845,40.00 , OYSTER AUTO-TOP UP,OYSTER TOP UP,Resources Directorate,Travelling and Subsistence Allowances,A530,
http://opendatacommunities.org/id/london-borough-council/sutton,London Borough of Sutton,13/01/2019,1267845,40.00 , OYSTER AUTO-TOP UP,OYSTER TOP UP,Resources Directorate,Travelling and Subsistence Allowances,A530,
http://opendatacommunities.org/id/london-borough-council/sutton,London Borough of Sutton,24/01/2019,1267845,317.93 , WWW.ARGOS.CO.UK,CL&G,Resources Directorate,Grants,F473,
http://opendatacommunities.org/id/london-borough-council/sutton,London Borough of Sutton,14/01/2019,1267845,89.99 , ARGOS RETAIL GROUP,CL&G,Resources Directorate,Grants,F473,
http://opendatacommunities.org/id/london-borough-council/sutton,London Borough of Sutton,03/01/2019,1267845,389.98 , WWW.ARGOS.CO.UK,"ARGOS PURCHASE - MILSON: COOKER, FRIDGE FREEZER & DELIVERY",Resources Directorate,Grants,F473,
http://opendatacommunities.org/id/london-borough-council/sutton,London Borough of Sutton,25/01/2019,1267845,209.99 , WWW.ARGOS.CO.UK,PURCHASE OF WHITE GOODS THROUGH CRISIS LOAN AND GRANT SCHEME,Resources Directorate,Grants,F473,
http://opendatacommunities.org/id/london-borough-council/sutton,London Borough of Sutton,25/01/2019,1267845,359.98 , WWW.ARGOS.CO.UK,PURCHASE OF WHITE GOODS THROUGH CRISIS LOAN AND GRANT SCHEME,Resources Directorate,Grants,F473,
http://opendatacommunities.org/id/london-borough-council/sutton,London Borough of Sutton,25/01/2019,1267845,533.92 , WWW.ARGOS.CO.UK,PURCHASE OF WHITE GOODS THROUGH CRISIS LOAN AND GRANT SCHEME,Resources Directorate,Grants,F473,
http://opendatacommunities.org/id/london-borough-council/sutton,London Borough of Sutton,25/01/2019,1267845,107.94 , WWW.ARGOS.CO.UK,PURCHASE OF WHITE GOODS THROUGH CRISIS LOAN AND GRANT SCHEME,Resources Directorate,Grants,F473,
http://opendatacommunities.org/id/london-borough-council/sutton,London Borough of Sutton,16/01/2019,1267845,(6.95), WWW.ARGOS.CO.UK,REFUND OF DELIVERY CHARGE FOR PREVIOUS CRISIS GRANT ORDER,Resources Directorate,Grants,F473,
http://opendatacommunities.org/id/london-borough-council/sutton,London Borough of Sutton,04/01/2019,1267845,219.99 , WWW.ARGOS.CO.UK,PURCHASE OF ELECTRIC COOKER FOR CRISIS GRANT,Resources Directorate,Grants,F473,
http://opendatacommunities.org/id/london-borough-council/sutton,London Borough of Sutton,04/01/2019,1267845,281.94 , WWW.ARGOS.CO.UK,PURCHASE OF 2 SINGLE BEDS FOR CRISIS GRANT,Resources Directorate,Grants,F473,
http://opendatacommunities.org/id/london-borough-council/sutton,London Borough of Sutton,27/12/2018,1267845,725.91 , WWW.ARGOS.CO.UK,"PURCHASE OF ELECTRIC COOKER, FRIDGE FREEZER, SINGLE DIVAN AND DOUBLE DIVAN FOR CRISIS LOAN",Resources Directorate,Grants,F473,
http://opendatacommunities.org/id/london-borough-council/sutton,London Borough of Sutton,22/01/2019,1267845,50.00 , WWW.GOV.UK,5 X PROBATE CERTS ON GOV.UK,Resources Directorate,General Office Expenses,F235,
http://opendatacommunities.org/id/london-borough-council/sutton,London Borough of Sutton,09/01/2019,1267845,135.49 , PAYPAL  CPAG,HOUSING BENEFIT AND COUNCIL TAX REDUCTION LEGISLATION 2018/19 & SHIPPING,Resources Directorate,Books of Reference/Statute,F222,
http://opendatacommunities.org/id/london-borough-council/sutton,London Borough of Sutton,15/01/2019,1267845,15.00 , OYSTER ONLINE,15.00 - A530 6403 9999 - OYSTER CARD (1) FOR ADULTS .PN,Peoples Services Directorate,Travelling and Subsistence Allowances,A530,
http://opendatacommunities.org/id/london-borough-council/sutton,London Borough of Sutton,15/01/2019,1267845,15.00 , OYSTER ONLINE,15.00 - A530 6403 9999 - OYSTER CARD (1) FOR ADULTS .PNG,Peoples Services Directorate,Travelling and Subsistence Allowances,A530,
http://opendatacommunities.org/id/london-borough-council/sutton,London Borough of Sutton,10/01/2019,1267845,15.00 , OYSTER ONLINE,15.00 - A530 6403 9999 - OYSTER CARD (1) FOR ADULTS .PNG,Peoples Services Directorate,Travelling and Subsistence Allowances,A530,
http://opendatacommunities.org/id/london-borough-council/sutton,London Borough of Sutton,16/01/2019,1267845,15.00 , OYSTER ONLINE,15.00 - A530 6403 9999 - OYSTER CARD (1) FOR ADULTS .PNG,Peoples Services Directorate,Travelling and Subsistence Allowances,A530,
http://opendatacommunities.org/id/london-borough-council/sutton,London Borough of Sutton,24/01/2019,1267845,21.96 , THE FAMILY PLANNING AS,EDUCATIONAL BOOKS,Peoples Services Directorate,Books,F006,
http://opendatacommunities.org/id/london-borough-council/sutton,London Borough of Sutton,05/01/2019,1267845,97.52 , AMZN MKTP UK MB0VO1ZL4,45.78 - J098 6417 9999 - AMAZON ORDER..PNG,Peoples Services Directorate,Books,F006,
http://opendatacommunities.org/id/london-borough-council/sutton,London Borough of Sutton,14/01/2019,1267845,7.99 , AMAZON PRIME MB7JK6VH4,EDUCATIONAL BOOK,Peoples Services Directorate,Education Equipment,F009,
http://opendatacommunities.org/id/london-borough-council/sutton,London Borough of Sutton,10/01/2019,1267845,32.99 , AMAZON.CO.UK MB74600U4,EDUCATIONAL BOOKS,Peoples Services Directorate,Education Equipment,F009,
http://opendatacommunities.org/id/london-borough-council/sutton,London Borough of Sutton,17/01/2019,1267845,29.56 , AMZN MKTP UK MB1M778K4,BOOKS SOCIAL CARE,Peoples Services Directorate,Personal Requisites,F106,
http://opendatacommunities.org/id/london-borough-council/sutton,London Borough of Sutton,15/01/2019,1267845,32.99 , AMAZON.CO.UK MB30H05O4,BOOKS FOR SOCIAL CARE,Peoples Services Directorate,Personal Requisites,F106,
http://opendatacommunities.org/id/london-borough-council/sutton,London Borough of Sutton,15/01/2019,1267845,27.94 , BOOKPOINT LIMITED,BOOKS FOR SOCIAL CARE,Peoples Services Directorate,Personal Requisites,F106,
http://opendatacommunities.org/id/london-borough-council/sutton,London Borough of Sutton,04/01/2019,1267845,21.99 , AMZN MKTP UK MB32D7LA4,AMAZON ORDER,Peoples Services Directorate,Provisions - General,F150,
